bitfinex/quotes_ETHUSD_20240730
["timestamp","ask_amount","ask_price","bid_price","bid_amount"]
[1722325801427,6.68489011,3351.5,3351.0,35.0]
[1722325801636,4.48997225,3351.5,3351.0,35.0]
[1722325803343,4.48997225,3351.5,3351.0,35.983]
[1722325804215,2.98385,3351.4,3351.0,35.983]
[1722325805833,6.68548104,3351.5,3351.0,35.983]
[1722325806031,4.48996225,3351.5,3351.0,35.983]
[1722325806273,2.98383,3351.4,3351.0,35.983]
[1722325807277,3.70185449,3351.5,3351.0,35.983]
[1722325807418,2.98392,3351.3,3351.0,35.983]
[1722325809220,2.98392,3351.3,3349.7,0.62276237]
[1722325809221,2.4027,3351.2,3349.8,2.3162]
[1722325809417,2.4027,3351.2,3349.5,3.60822237]
[1722325809418,2.98468,3350.5,3349.5,3.60822237]
[1722325809674,5.38755,3350.3,3349.9,35.0]
[1722325809822,2.9849,3350.2,3349.9,35.0]
[1722325810322,2.4027,3350.3,3349.9,35.0]
[1722325810323,2.98498,3350.1,3349.9,35.0]
[1722325810679,5.97005,3350.1,3349.9,35.0]
[1722325811167,2.98508,3350.0,3349.3,2.98564]
[1722325811403,2.98494,3350.2,3349.4,2.98559]
[1722325811601,2.98494,3350.2,3349.3,2.98562]
[1722325811602,2.98494,3350.2,3349.5,37.98551]
[1722325812081,2.98501,3350.1,3349.5,37.98551]
[1722325812396,2.98501,3350.1,3349.5,35.0]
[1722325812750,2.98516,3349.9,3349.5,35.0]
[1722325814593,2.98518,3349.9,3349.5,35.0]
[1722325814806,2.4027,3350.3,3349.5,35.0]
[1722325815102,2.98533,3349.8,3349.5,35.0]
[1722325816575,2.98543,3349.6,3349.5,35.0]
[1722325817905,5.42133,3349.6,3349.5,35.0]
[1722325819070,5.97133,3349.6,3349.5,35.0]
[1722325819501,2.98569,3349.3,3349.0,0.017]
[1722325819656,2.98569,3349.3,3349.2,0.2992]
[1722325819861,5.97138,3349.3,3349.2,0.2992]
[1722325820095,6.52138,3349.3,3349.2,0.2992]
[1722325820406,3.53569,3349.3,3349.2,0.2992]
[1722325820603,4.4911183,3349.3,3349.2,0.2992]
[1722325822089,7.4768083,3349.3,3349.2,0.2992]
[1722325822701,2.98583,3349.2,3349.0,0.017]
[1722325822896,0.55,3349.1,3349.0,0.017]
[1722325824001,0.55,3349.2,3349.0,0.017]
[1722325824817,1.38,3349.7,3349.1,3.28507]
[1722325824960,1.38,3349.7,3349.1,3.285]
[1722325825164,1.38,3349.7,3349.2,35.2992]
[1722325826198,0.55,3349.6,3349.2,35.2992]
[1722325826871,0.55,3349.6,3349.3,2.98564]
[1722325827206,1.38,3349.7,3349.3,2.98564]
[1722325827520,1.38,3349.7,3349.4,35.0]
[1722325830081,1.38,3349.7,3349.4,37.98559]
[1722325830316,1.38,3349.7,3349.4,35.0]
[1722325832163,1.38,3349.7,3349.6,2.98543]
[1722325832412,5.31183,3350.5,3349.9,2.98515]
[1722325832627,2.858387,3350.5,3349.9,2.98515]
[1722325832974,1.38,3350.4,3350.2,2.98481]
[1722325833275,1.38,3350.4,3350.3,5.9696]
[1722325833681,1.38,3350.4,3350.3,2.9848]
[1722325834426,1.38,3350.4,3350.3,5.9696]
[1722325835726,1.38,3350.4,3350.3,2.9848]
[1722325835876,1.38,3350.4,3350.3,35.0]
[1722325837427,4.801173,3350.4,3349.7,5.34626]
[1722325837623,1.38,3350.4,3349.7,5.34626]
[1722325837774,1.38,3350.4,3349.8,35.0]
[1722325837975,1.38,3350.4,3349.9,2.98509]
[1722325838403,1.38,3350.4,3350.0,2.98506]
[1722325838612,1.38,3350.4,3350.1,37.98497]
[1722325839323,3.421209,3350.4,3350.1,35.0]
[1722325839491,5.30031,3351.0,3350.1,35.0]
[1722325839492,2.98442,3350.8,3350.1,35.0]
[1722325839697,2.98456,3350.6,3350.1,35.0]
[1722325839903,0.55,3350.5,3350.1,35.0]
[1722325841154,2.98405,3351.2,3350.5,2.98456]
[1722325841314,3.81433,3351.2,3350.6,2.98452]
[1722325841715,0.83028,3351.2,3350.6,2.98447]
[1722325842337,3.81428,3351.2,3350.4,5.96932]
[1722325842540,0.913303,3351.1,3350.2,2.98483]
[1722325842755,2.98419,3351.0,3350.3,2.98473]
[1722325842954,2.3349,3351.4,3350.4,35.0]
[1722325843262,2.98423,3351.0,3350.4,35.0]
[1722325843561,0.55,3350.9,3350.4,35.0]
[1722325844329,4.36442,3350.8,3350.4,35.0]
[1722325844661,2.98446,3350.7,3350.4,35.0]
[1722325844863,2.98454,3350.6,3350.4,35.0]
[1722325845016,2.98448,3350.7,3350.0,2.98505]
[1722325845216,0.55,3350.6,3349.8,5.4698]
[1722325845560,2.98463,3350.5,3349.9,37.98515]
[1722325846369,2.98463,3350.5,3349.9,35.0]
[1722325846658,2.98472,3350.4,3349.9,35.0]
[1722325847154,2.98481,3350.3,3349.9,35.0]
[1722325847753,2.98499,3350.1,3349.9,35.0]
[1722325847987,2.98507,3350.0,3349.4,0.2992]
[1722325848473,2.98499,3350.1,3349.5,35.0]
[1722325848800,3.53508,3350.0,3349.5,35.0]
[1722325848952,2.98517,3349.9,3349.5,35.0]
[1722325849790,0.55,3350.0,3349.5,35.0]
[1722325850296,2.3169,3350.4,3349.5,35.0]
[1722325850494,2.4528,3350.8,3349.9,2.98515]
[1722325850700,2.98445,3350.7,3350.1,2.98497]
[1722325850901,2.98445,3350.7,3349.9,2.98515]
[1722325850902,2.98445,3350.7,3349.9,2.98509]
[1722325851201,2.98454,3350.6,3350.0,35.0]
[1722325852301,2.98475,3350.4,3350.0,35.0]
[1722325852852,0.55,3350.5,3350.0,37.98506]
[1722325854192,0.55,3350.5,3350.0,35.0]
[1722325854394,2.98476,3350.4,3350.0,35.0]
[1722325855299,1.31479923,3350.5,3350.0,35.0]
[1722325855602,0.55,3350.5,3350.0,37.98507]
[1722325855994,0.55,3350.5,3349.8,2.98517]
[1722325856389,0.55,3350.5,3349.9,35.0]
[1722325856903,2.98473,3350.4,3349.9,35.0]
[1722325857099,0.55,3350.5,3349.9,35.0]
[1722325857904,3.53463,3350.5,3349.9,37.98516]
[1722325859090,0.55,3350.5,3349.9,37.98509]
[1722325859333,2.98469,3350.5,3349.9,37.98509]
[1722325859631,0.55,3350.4,3349.9,35.0]
[1722325859785,0.55,3350.4,3349.9,40.97024]
[1722325859985,0.55,3350.4,3349.9,37.98509]
[1722325860185,3.53464,3350.5,3349.9,37.98509]
[1722325861188,2.98472,3350.4,3349.9,35.0]
[1722325861952,1.28139061,3350.5,3349.9,35.0]
[1722325862130,3.53471,3350.5,3349.9,35.0]
[1722325862808,3.53471,3350.5,3349.9,37.98516]
[1722325863941,0.55,3350.5,3350.0,2.98507]
[1722325864149,2.98467,3350.5,3349.9,35.0]
[1722325864350,0.55,3350.4,3349.9,35.0]
[1722325864532,2.98482,3350.3,3349.9,35.0]
[1722325865763,2.98494,3350.2,3349.5,2.98546]
[1722325865917,2.98494,3350.2,3349.6,2.98538]
[1722325866111,2.98494,3350.2,3349.7,35.0]
[1722325867324,2.98511,3350.0,3349.7,35.0]
[1722325868360,2.98521,3349.9,3349.7,35.0]
[1722325868545,2.98521,3349.9,3349.3,0.2992]
[1722325868728,2.98513,3350.0,3349.3,0.2992]
[1722325868919,2.98548,3349.6,3349.3,0.2992]
[1722325869118,0.55,3349.5,3349.3,0.2992]
[1722325869353,2.9856,3349.4,3349.3,0.2992]
[1722325869559,2.9856,3349.4,3349.2,0.2992]
[1722325870018,0.55,3349.5,3349.2,0.2992]
[1722325870452,3.53557,3349.5,3349.2,0.2992]
[1722325870694,3.53557,3349.5,3349.1,35.0]
[1722325871066,2.98565,3349.4,3349.1,35.0]
[1722325875521,2.98579,3349.2,3348.7,2.3231]
[1722325875898,2.98579,3349.2,3348.8,35.0]
[1722325876747,3.53587,3349.1,3348.4,2.98645]
[1722325877025,0.55,3349.1,3348.4,2.98642]
[1722325877219,0.55,3349.1,3348.5,35.0]
[1722325877519,3.53587,3349.1,3348.5,35.0]
[1722325878385,6.52174,3349.1,3348.5,35.0]
[1722325878582,9.509114,3349.1,3348.5,35.0]
[1722325878786,9.509114,3349.1,3348.1,2.2534]
[1722325879280,9.509114,3349.1,3348.2,35.0]
[1722325880879,12.494984,3349.1,3348.2,35.0]
[1722325881716,9.509114,3349.1,3348.2,35.0]
[1722325881922,12.494984,3349.1,3348.2,35.0]
[1722325883131,9.509114,3349.1,3348.2,35.0]
[1722325883694,12.494984,3349.1,3348.2,35.0]
[1722325884436,12.509114,3349.1,3348.2,35.0]
[1722325893076,12.509114,3349.1,3347.9,2.98686]
[1722325893281,13.494114,3349.1,3348.1,0.985]
[1722325893436,13.494114,3349.1,3348.2,35.0]
[1722325899567,13.494114,3349.1,3347.8,2.4647]
[1722325899568,16.479984,3349.1,3347.8,2.4647]
[1722325899774,19.465854,3349.1,3347.9,0.985]
[1722325900005,19.627984,3349.1,3347.9,35.985]
[1722325902015,22.613854,3349.1,3347.9,0.985]
[1722325902217,22.613854,3349.1,3347.8,2.4647]
[1722325902578,22.613854,3349.1,3347.8,3.4497]
[1722325903779,19.627984,3349.1,3347.8,3.4497]
[1722325904126,19.627984,3349.1,3348.0,0.985]
[1722325904332,16.479984,3349.1,3348.0,0.985]
[1722325904485,16.479984,3349.1,3348.1,35.0]
[1722325905385,19.627984,3349.1,3348.1,35.0]
[1722325905924,16.479984,3349.1,3348.1,35.0]
[1722325906383,19.627984,3349.1,3347.8,2.4647]
[1722325906593,21.81513332,3349.1,3347.9,0.985]
[1722325906796,19.627984,3349.1,3347.9,0.985]
[1722325907006,21.81513332,3349.1,3347.9,35.985]
[1722325907191,19.627984,3349.1,3347.9,35.985]
[1722325908040,24.80100332,3349.1,3347.9,35.985]
[1722325908537,22.613854,3349.1,3347.9,35.985]
[1722325908724,24.80151741,3349.1,3347.9,35.0]
[1722325909095,22.613854,3349.1,3347.9,35.0]
[1722325910046,22.613854,3349.1,3347.4,2.3328]
[1722325910047,2.98692,3348.0,3347.4,2.3328]
[1722325910227,2.98691,3348.0,3347.4,2.3328]
[1722325910396,0.55,3347.9,3347.5,0.985]
[1722325910796,0.55,3348.0,3347.5,0.985]
[1722325911028,2.98708,3347.8,3347.4,2.3328]
[1722325911346,2.98721,3347.6,3347.4,2.3328]
[1722325911726,2.98701,3347.9,3347.4,2.3328]
[1722325912075,2.98717,3347.7,3347.4,2.3328]
[1722325914127,2.9873,3347.5,3347.4,2.3328]
[1722325914541,2.9873,3347.5,3346.0,4.83482929]
[1722325914748,2.98754,3347.3,3346.6,0.985]
[1722325915075,2.98768,3347.1,3346.6,0.985]
[1722325915259,2.98768,3347.1,3346.3,2.98836]
[1722325915443,3.53781,3347.0,3346.7,0.985]
[1722325915645,2.98784,3346.9,3346.7,0.985]
[1722325916033,0.55,3347.0,3346.7,0.985]
[1722325916464,2.98792,3346.8,3346.7,0.985]
[1722325916664,0.55,3347.0,3346.7,0.985]
[1722325916665,3.5378,3347.0,3346.7,0.985]
[1722325916869,2.98784,3346.9,3346.0,4.53560929]
[1722325917148,5.97576,3346.9,3346.6,0.985]
[1722325917383,2.98794,3346.8,3346.6,0.985]
[1722325917791,2.98794,3346.8,3346.7,2.2594]
[1722325919366,5.97593,3346.8,3346.7,2.2594]
[1722325919687,6.52593,3346.8,3346.7,2.2594]
[1722325920499,3.53794,3346.8,3346.7,2.2594]
[1722325920709,0.55,3346.8,3346.7,2.2594]
[1722325921056,3.53792,3346.8,3346.7,2.2594]
[1722325921257,3.53792,3346.8,3346.7,3.2444]
[1722325921459,0.55,3346.8,3346.7,3.2444]
[1722325921702,2.98786,3346.9,3346.7,3.2444]
[1722325921857,0.55,3346.8,3346.7,3.2444]
[1722325922201,2.98751,3347.3,3346.7,3.2444]
[1722325922491,2.98758,3347.2,3346.9,0.985]
[1722325923508,5.97506,3347.3,3346.9,0.985]
[1722325923656,2.98757,3347.2,3346.7,3.2444]
[1722325924203,2.98778,3347.0,3346.7,2.2594]
[1722325924508,2.98792,3346.8,3346.7,2.2594]
[1722325924794,2.98792,3346.8,3346.2,2.98839]
[1722325925111,2.98792,3346.8,3346.4,0.985]
[1722325925684,2.98792,3346.8,3346.3,2.4484]
[1722325925962,2.98792,3346.8,3346.3,3.4334]
[1722325926364,2.98811,3346.6,3346.3,3.4334]
[1722325926888,2.98792,3346.8,3346.3,3.4334]
[1722325927086,0.55,3346.7,3346.3,3.4334]
[1722325927668,0.55,3346.7,3346.3,6.42177]
[1722325927876,0.55,3346.9,3346.5,0.985]
[1722325928086,2.98777,3347.0,3346.5,0.985]
[1722325928302,0.55,3347.1,3346.5,0.985]
[1722325929278,0.55,3347.1,3346.6,35.0]
[1722325929958,2.98777,3347.0,3346.6,35.0]
[1722325930645,2.98784,3346.9,3346.6,35.0]
[1722325930813,3.53771,3347.1,3346.6,35.0]
[1722325931763,2.98775,3347.0,3346.6,35.0]
[1722325931944,0.55,3347.1,3346.6,35.0]
[1722325932119,0.55,3347.2,3346.6,35.0]
[1722325932859,2.9877,3347.1,3346.6,35.0]
[1722325933733,2.9877,3347.1,3346.7,0.985]
[1722325933938,0.55,3347.2,3346.8,2.4886]
[1722325934269,2.98758,3347.2,3346.9,0.985]
[1722325934436,0.55,3347.1,3346.9,0.985]
[1722325934638,3.53767,3347.1,3346.8,2.4886]
[1722325936284,2.98776,3347.0,3346.5,35.985]
[1722325938071,1.502525,3347.1,3346.5,35.0]
[1722325938072,2.98785,3346.9,3346.5,35.0]
[1722325939068,1.502525,3347.1,3346.5,35.0]
[1722325939069,4.490265,3347.1,3346.5,35.0]
[1722325939246,3.53774,3347.1,3346.5,35.0]
[1722325939452,2.98777,3347.0,3346.5,35.0]
[1722325940044,1.93,3347.1,3346.5,38.97317]
[1722325940390,4.91766,3347.1,3346.5,38.97317]
[1722325941178,7.90539,3347.1,3346.5,38.97317]
[1722325941477,4.91766,3347.1,3346.5,35.985]
[1722325941686,2.98789,3346.9,3346.5,35.0]
[1722325941884,2.98789,3346.9,3346.3,5.4257]
[1722325941885,2.98789,3346.9,3346.3,3.4224]
[1722325942051,2.98789,3346.9,3346.3,2.4374]
[1722325942052,2.98806,3346.7,3346.3,2.4374]
[1722325942434,2.98806,3346.7,3346.4,35.0]
[1722325943544,2.98811,3346.6,3346.4,35.0]
[1722325944175,3.53798,3346.8,3346.4,35.0]
[1722325944494,2.98815,3346.6,3346.4,35.0]
[1722325944776,2.98819,3346.5,3346.4,35.0]
[1722325945836,3.53819,3346.5,3346.4,35.0]
[1722325947567,3.53819,3346.5,3346.0,3.91660929]
[1722325947945,3.53819,3346.5,3346.1,35.0]
[1722325948186,0.55,3346.5,3346.1,35.0]
[1722325948391,2.98828,3346.4,3346.1,35.0]
[1722325949877,3.5382,3346.5,3346.1,35.0]
[1722325950219,1.38,3346.7,3346.3,0.985]
[1722325950418,2.98779,3347.0,3346.3,3.97335]
[1722325950615,2.98779,3347.0,3346.5,0.985]
[1722325950772,2.98784,3346.9,3346.6,35.0]
[1722325950973,2.98779,3347.0,3346.6,35.0]
[1722325951275,2.98779,3347.0,3346.3,0.985]
[1722325951472,2.98798,3346.8,3346.3,0.985]
[1722325951877,0.382939,3346.9,3346.4,35.0]
[1722325952100,2.98766,3347.1,3346.6,2.4671]
[1722325952288,3.53777,3347.0,3346.6,2.4671]
[1722325952615,0.55,3347.0,3346.6,2.4671]
[1722325952818,6.81686,3347.2,3346.6,37.4671]
[1722325952819,6.53769,3347.1,3346.6,37.4671]
[1722325953053,7.68131945,3347.1,3346.6,37.4671]
[1722325953200,2.9879,3346.9,3346.6,35.0]
[1722325953912,2.9879,3346.9,3346.3,3.4454]
[1722325954617,2.9879,3346.9,3346.4,35.0]
[1722325955691,1.38,3346.8,3346.4,35.0]
[1722325955927,1.38,3346.8,3346.3,2.4604]
[1722325956136,2.50546443,3346.8,3346.3,2.4604]
[1722325956287,2.98803,3346.7,3346.3,2.4604]
[1722325956488,2.98803,3346.7,3346.2,0.985]
[1722325957024,2.9881,3346.6,3346.2,0.985]
[1722325959215,4.70085002,3346.8,3346.2,0.985]
[1722325959439,5.49344443,3346.8,3346.2,0.985]
[1722325959733,2.98806,3346.7,3346.2,0.985]
[1722325959899,2.98806,3346.7,3346.3,35.0]
[1722325960495,7.69120745,3346.8,3346.3,35.0]
[1722325960715,1.38,3346.8,3346.5,2.98813]
[1722325961022,2.1976243,3347.2,3346.9,5.38843]
[1722325961233,2.1976243,3347.5,3347.1,0.985]
[1722325961434,2.1976243,3347.6,3347.1,3.97265]
[1722325961806,5.1847743,3347.7,3347.1,3.97265]
[1722325962007,2.1976243,3347.7,3347.1,3.97265]
[1722325962244,2.1976243,3347.8,3347.3,0.985]
[1722325962649,2.71608473,3347.8,3347.3,0.985]
[1722325962855,5.1847643,3347.7,3347.3,0.985]
[1722325963056,5.1847643,3347.7,3347.1,3.97263]
[1722325963405,5.18343311,3347.7,3347.1,3.97263]
[1722325963759,2.98714,3347.7,3347.1,3.97263]
[1722325964749,2.71475354,3347.8,3347.1,3.97263]
[1722325964921,2.71475354,3347.8,3347.3,3.97242]
[1722325964922,1.38,3347.6,3347.3,3.97242]
[1722325965244,1.38,3347.6,3347.4,2.98734]
[1722325965623,1.38,3347.6,3347.3,0.985]
[1722325966323,2.33503331,3347.6,3347.3,0.985]
[1722325966547,2.33503331,3347.6,3347.1,3.97265]
[1722325966757,1.38,3347.6,3347.1,3.97265]
[1722325968621,1.38,3347.6,3347.1,3.97259]
[1722325969041,1.38,3347.6,3347.2,2.98757]
[1722325970164,1.38,3347.6,3347.4,2.98737]
[1722325970369,5.18031403,3348.1,3347.4,2.98737]
[1722325970526,5.18031403,3348.1,3347.3,3.97247]
[1722325970527,4.72070506,3348.0,3347.3,3.97241]
[1722325970730,1.38,3347.8,3347.5,3.9723]
[1722325970947,1.73385506,3348.0,3347.5,3.9723]
[1722325971335,1.38,3348.0,3347.7,0.985]
[1722325971549,8.18000403,3348.4,3347.8,2.98702]
[1722325971735,0.55,3348.3,3347.8,2.98702]
[1722325972868,0.55,3348.3,3347.7,0.985]
[1722325973075,2.98673,3348.2,3347.6,2.98721]
[1722325973370,0.652328,3348.1,3347.6,2.98721]
[1722325974267,3.639118,3348.1,3347.5,3.97228]
[1722325974451,0.652328,3348.1,3347.6,2.98721]
[1722325974638,3.639098,3348.1,3347.5,2.9873]
[1722325974838,0.4189098,3348.0,3347.5,2.9873]
[1722325975042,0.4189098,3348.0,3347.5,37.9873]
[1722325976240,0.4189098,3348.0,3347.3,0.985]
[1722325976444,2.98701,3347.9,3347.3,3.97247]
[1722325976646,0.86866898,3347.8,3347.3,2.98747]
[1722325977166,3.85571898,3347.8,3347.1,38.97258]
[1722325977554,0.86866898,3347.8,3347.3,2.98747]
[1722325980185,0.86866898,3347.8,3347.3,37.98747]
[1722325980355,1.7989098,3348.0,3347.5,2.9873]
[1722325980557,3.53662,3348.3,3347.5,2.9873]
[1722325980558,3.53662,3348.3,3347.5,3.9723]
[1722325980774,2.98677,3348.1,3347.5,3.9723]
[1722325981255,3.53662,3348.3,3347.6,2.98714]
[1722325981459,0.55,3348.3,3347.7,2.98711]
[1722325981656,1.93,3348.3,3347.7,3.97211]
[1722325981860,8.27838,3348.7,3348.0,2.98682]
[1722325982163,4.462668,3348.6,3347.9,3.97187]
[1722325982362,4.462668,3348.6,3347.9,0.985]
[1722325982589,2.98641,3348.5,3347.9,3.97193]
[1722325983996,2.98641,3348.5,3347.7,3.97207]
[1722325984181,1.476338,3348.6,3347.7,0.985]
[1722325984182,2.98665,3348.3,3347.7,0.985]
[1722325984377,2.98665,3348.3,3347.3,35.0]
[1722325984378,2.98682,3348.1,3347.3,35.0]
[1722325984578,2.98682,3348.1,3347.5,3.97225]
[1722325985233,2.9866,3348.3,3347.7,2.9871]
[1722325985513,3.53669,3348.2,3347.7,2.9871]
[1722325986179,0.55,3348.2,3347.8,2.98702]
[1722325986527,2.98656,3348.4,3347.9,2.98694]
[1722325986693,2.98656,3348.4,3347.7,6.95914]
[1722325986877,1.678656,3348.3,3347.7,3.97204]
[1722325987579,1.678656,3348.3,3347.8,2.98698]
[1722325987804,4.665246,3348.3,3347.8,2.98698]
[1722325988013,4.665246,3348.3,3347.7,0.985]
[1722325988896,4.665246,3348.3,3347.7,3.9721]
[1722325989226,4.665246,3348.3,3347.5,2.98725]
[1722325989227,5.44906,3348.1,3347.5,3.97224]
[1722325989582,5.44906,3348.1,3347.5,6.95948]
[1722325989783,5.44906,3348.1,3347.5,3.97224]
[1722325989983,2.4623,3348.1,3347.5,3.97224]
[1722325990184,0.7651656,3348.2,3347.5,3.97224]
[1722325991007,0.7651656,3348.2,3347.7,2.98711]
[1722325991224,0.74768556,3348.1,3347.2,2.2623]
[1722325991436,0.74768556,3348.1,3347.5,3.97223]
[1722325991619,1.38,3348.3,3347.7,2.98706]
[1722325992139,4.36659,3348.3,3347.7,2.98706]
[1722325992726,7.35326,3348.3,3347.7,2.98706]
[1722325992928,2.98678,3348.1,3347.5,3.97227]
[1722325993099,2.98678,3348.1,3347.5,6.95952]
[1722325993299,2.98678,3348.1,3347.6,2.98721]
[1722325993625,3.956506,3348.2,3347.6,2.98721]
[1722325994137,3.956506,3348.2,3347.6,2.98716]
[1722325994299,3.956506,3348.2,3347.6,5.97431]
[1722325994634,3.956506,3348.2,3347.5,0.985]
[1722325994635,3.956506,3348.2,3347.7,2.98711]
[1722325994787,0.969836,3348.2,3347.7,2.98711]
[1722325995522,1.38,3348.3,3347.8,2.98694]
[1722325995724,1.38,3348.3,3347.7,3.97208]
[1722325996135,1.38,3348.3,3347.7,3.97205]
[1722325996314,2.98668,3348.2,3347.7,3.97205]
[1722325996499,2.98668,3348.2,3347.5,2.98724]
[1722325996500,5.97344,3348.2,3347.5,3.97223]
[1722325996713,2.98691,3348.0,3347.3,3.97245]
[1722325996905,3.956614,3348.1,3347.5,2.98725]
[1722325997304,0.8323294,3348.0,3347.5,2.98725]
[1722325998122,3.8192394,3348.0,3347.3,3.97245]
[1722325998327,5.25819,3347.9,3347.3,3.97242]
[1722325998510,2.2712,3347.9,3347.4,2.98738]
[1722325998898,2.2712,3347.9,3347.3,3.97242]
[1722325998899,2.2712,3347.9,3347.5,2.98725]
[1722325999408,2.2712,3347.9,3347.3,3.97241]
[1722325999614,5.25815,3347.9,3347.4,2.98737]
[1722326000144,2.2712,3347.9,3347.4,5.9747]
[1722326000637,2.2712,3347.9,3347.4,2.98733]
[1722326001051,5.25816,3347.9,3347.4,2.98733]
[1722326001197,2.2712,3347.9,3347.4,2.98733]
[1722326001654,4.36663,3348.3,3347.7,3.97207]
[1722326001836,5.17739451,3348.5,3347.7,3.97207]
[1722326001837,3.53669,3348.2,3347.7,3.97207]
[1722326002448,3.53669,3348.2,3347.7,6.95913]
[1722326002449,0.55,3348.2,3347.7,6.95913]
[1722326002652,5.24866,3348.5,3347.9,3.97194]
[1722326002958,1.38,3348.6,3348.3,0.985]
[1722326003169,1.38,3348.6,3348.5,0.985]
[1722326003313,1.38,3348.6,3348.5,6.95782]
[1722326004122,1.38,3348.6,3348.5,3.97141]
[1722326004519,1.38,3348.6,3348.5,0.985]
[1722326005612,1.38,3348.6,3348.5,38.97141]
[1722326009139,1.38,3348.6,3348.5,35.985]
[1722326009856,1.38,3348.6,3348.5,0.985]
[1722326010769,1.38,3348.6,3348.4,35.0]
[1722326011081,2.4692,3348.9,3348.3,3.97158]
[1722326011287,0.34542,3348.8,3348.3,3.97158]
[1722326011441,0.34542,3348.8,3348.3,38.97158]
[1722326012084,2.98595,3349.1,3348.4,2.9865]
[1722326012404,0.55,3349.0,3348.4,5.97293]
[1722326012559,0.55,3349.0,3348.5,3.97141]
[1722326013055,2.98595,3349.1,3348.5,3.97135]
[1722326013596,2.98596,3349.0,3348.5,0.985]
[1722326014171,2.98625,3348.7,3348.3,35.0]
[1722326014401,2.98625,3348.7,3348.1,3.97173]
[1722326014611,2.8464,3348.6,3347.9,3.97192]
[1722326014811,3.569745,3348.5,3347.9,35.985]
[1722326015017,0.583265,3348.5,3347.9,35.985]
[1722326015316,0.583265,3348.5,3348.1,3.97176]
[1722326015597,0.583265,3348.5,3348.1,0.985]
[1722326015917,2.98651,3348.4,3347.9,35.985]
[1722326016561,2.98651,3348.4,3347.9,35.0]
[1722326017519,5.97308,3348.4,3347.9,35.0]
[1722326017684,2.98651,3348.4,3347.9,35.0]
[1722326017882,3.868438,3348.4,3347.9,35.0]
[1722326019291,2.98667,3348.2,3347.4,2.98734]
[1722326019671,2.9869,3348.0,3347.5,35.0]
[1722326019873,2.98667,3348.2,3347.5,35.0]
[1722326020186,2.98677,3348.1,3347.5,35.0]
[1722326020838,2.98686,3348.0,3347.5,35.0]
[1722326021275,2.98704,3347.8,3347.5,35.0]
[1722326022313,2.98686,3348.0,3347.5,35.0]
[1722326022490,2.98699,3347.9,3347.5,35.0]
[1722326022877,2.98686,3348.0,3347.5,35.0]
[1722326023530,2.3466,3348.1,3347.5,37.98724]
[1722326023835,1.38,3348.6,3348.1,2.98676]
[1722326023984,0.57283036,3348.5,3348.1,2.98676]
[1722326024184,0.57283036,3348.5,3347.9,2.98685]
[1722326024408,5.97312,3348.4,3347.8,5.43521]
[1722326024634,2.98655,3348.4,3347.8,5.43521]
[1722326024831,2.98655,3348.4,3347.8,2.98701]
[1722326025740,2.19172396,3348.7,3347.8,2.98697]
[1722326025940,2.98642,3348.5,3347.8,2.98697]
[1722326026153,2.98642,3348.5,3348.0,2.98685]
[1722326026455,2.98642,3348.5,3347.9,2.98694]
[1722326027131,1.374249,3348.7,3348.0,2.98684]
[1722326027312,0.88227557,3348.6,3348.1,2.98675]
[1722326027510,3.0,3348.8,3348.3,2.98657]
[1722326027835,2.9861,3348.9,3348.3,2.98653]
[1722326028155,5.97235,3348.8,3348.1,5.39108]
[1722326028450,2.986,3349.0,3348.1,2.4044]
[1722326028603,6.34306527,3349.0,3348.1,5.3911]
[1722326029013,2.98615,3348.8,3348.1,8.37779]
[1722326029413,2.98615,3348.8,3348.2,2.98665]
[1722326029614,2.98615,3348.8,3348.1,5.39109]
[1722326029942,2.98623,3348.7,3348.1,8.37779]
[1722326030248,2.98623,3348.7,3348.2,2.98667]
[1722326031042,1.01560213,3348.8,3348.2,2.98667]
[1722326031366,1.38,3349.0,3348.8,2.98609]
[1722326031648,2.19176347,3350.0,3349.4,2.98555]
[1722326031860,1.38,3350.0,3349.4,2.98554]
[1722326032000,0.75904935,3349.9,3349.6,2.98542]
[1722326032209,0.75904935,3349.9,3349.5,2.98551]
[1722326032410,1.38,3350.0,3349.7,2.98531]
[1722326032845,1.38,3350.0,3349.5,2.98551]
[1722326033203,1.38,3350.0,3349.5,5.97095]
[1722326033405,1.38,3350.0,3349.6,35.0]
[1722326033809,2.98522,3349.9,3349.1,2.98581]
[1722326034008,0.436522,3349.8,3349.1,2.98581]
[1722326034337,2.98543,3349.6,3349.1,35.0]
[1722326035627,3.421842,3349.8,3349.1,37.98587]
[1722326035820,3.7640642,3349.7,3349.1,35.0]
[1722326036238,0.7787042,3349.7,3348.5,0.2992]
[1722326036412,2.9858,3349.2,3348.5,5.39665]
[1722326036759,2.98586,3349.2,3348.6,2.9863]
[1722326037050,2.98565,3349.4,3348.7,2.98623]
[1722326037269,0.848565,3349.3,3348.7,2.98623]
[1722326037749,2.9858,3349.2,3348.5,37.98633]